Workbook

Sheet Отчет
A3: Сумма по полю Прибыль | B3: Названия столбцов
B4: 2011 | N4: 2012 | S4: Общий итог
B5: Кв-л1 | E5: Кв-л2 | H5: Кв-л3 | K5: Кв-л4 | N5: Кв-л1 | O5: Кв-л2 | P5: Кв-л3 | Q5: Кв-л4
A6: Названия строк | B6: янв | C6: фев | D6: мар | E6: апр | F6: май | G6: июн | H6: июл | I6: авг | J6: сен | K6: окт | L6: ноя | M6: дек | N6: фев | O6: май | P6: сен | Q6: окт | R6: ноя
A7: Альфа
A8: Алкогольные напитки, пиво | B8: 87115.3 | C8: 74405.19 | D8: 150556.6 | E8: 242520.96 | F8: 86751.45 | G8: 243259.92 | H8: 257557.48 | I8: 42857.77 | J8: 201826.11 | K8: 165836.58 | L8: 350553.77 | M8: 203403.57 | S8: 2106644.7
A9: Бакалея | B9: 102677.37 | C9: 120136.83 | D9: 270143.07 | E9: 298416.16 | F9: 166862.45 | G9: 260994.81 | H9: 242879.14 | I9: 174783.12 | J9: 45964.56 | K9: 34209.04 | L9: 374482.17 | M9: 382512.85 | S9: 2474061.57
A10: Безалкогольные напитки | B10: 34535.5 | C10: 19590.66 | D10: 11189.61 | E10: 35320.99 | F10: 9049.18 | G10: 53436.79 | H10: 80560.92 | I10: 48695.99 | J10: 40226.11 | K10: 39481.89 | L10: 106789.8 | M10: 83579.18 | S10: 562456.62
A11: Бытовая химия | B11: 106387.31 | C11: 96421.69 | D11: 108762.95 | E11: 2647.55 | F11: 100503.19 | G11: 56990.26 | H11: 99382.02 | I11: 166522.31 | J11: 53312.29 | L11: 78051.24 | M11: 76759.64 | S11: 945740.45
A12: Выпечка | B12: 614732.21 | C12: 592558.94 | D12: 851309.19 | E12: 433374.31 | F12: 393542.21 | G12: 90089.64 | H12: 144445.84 | I12: 1332236.51 | J12: 445364.62 | K12: 302769.48 | L12: 202756.88 | M12: 275843.25 | S12: 5679023.08
A13: Детское питание | C13: 264 | E13: 227 | F13: 1284.52 | G13: 347.94 | H13: 735.77 | J13: 597.64 | K13: 1231.62 | L13: 792 | M13: 3.49 | S13: 5483.98
A14: Дието-, диабетические продукты | B14: 246.99 | C14: 1164.4 | D14: 77.15 | E14: 175.92 | F14: 1726.34 | H14: 1720.97 | I14: 63 | J14: 1338.25 | K14: 4265.28 | L14: 976.64 | M14: 936.97 | P14: 458.03 | S14: 13149.94
A15: Замороженные продукты | B15: 65197.22 | C15: -1155.41 | D15: 40151.88 | E15: 41157.31 | F15: 53457.37 | G15: 21263.85 | H15: 44262.55 | I15: 41557.03 | J15: 33616.13 | K15: 37248.81 | L15: 36544.8 | M15: 110945.11 | S15: 524246.65
A16: Кондитерские изделия | B16: 87019.28 | C16: 66188.52 | D16: 66946.39 | E16: 46278.26 | F16: 63309.39 | G16: 12919.5 | H16: 90255.45 | I16: 46915.47 | J16: 27693.07 | K16: 41369.62 | L16: 168486.07 | M16: 29019.87 | S16: 746400.89
A17: Консервы | B17: 54416.28 | C17: 95117.44 | D17: 58892.42 | E17: 47743.96 | F17: 28598.6 | G17: 54523.7 | H17: 49629.58 | I17: 46585.37 | J17: 53608.19 | K17: 45380.56 | L17: 67514.28 | M17: 34541.85 | S17: 636552.23
A18: Косметика и парфюмерия | B18: 58600.3 | C18: 117140.32 | D18: 116877.49 | E18: 57172.7 | F18: 80303.64 | H18: 104876.35 | I18: 41494.61 | J18: 137026.7 | K18: 98109.35 | L18: 175723.71 | M18: 54000.05 | S18: 1041325.22
A19: Кофе, кофейные напитки, чай | B19: 40558.28 | C19: 114582.24 | D19: 13308.72 | E19: 27225.5 | F19: 150436.67 | G19: 30891.72 | H19: 10072.59 | I19: 94826.25 | J19: 64576.47 | K19: 42284.13 | L19: 73738.52 | M19: 180899.56 | S19: 843400.65
A20: Кулинария | B20: 839.85 | C20: 519.98 | D20: 799.75 | E20: 319.75 | F20: 228.25 | G20: 1158.58 | H20: 799.89 | I20: 3527.44 | J20: 439.86 | K20: 359.87 | L20: 359.54 | M20: 159.99 | N20: 559.52 | Q20: 160 | S20: 10232.27
A21: Молочные продукты, яйца, майонез | B21: 254058.15 | C21: 247935.34 | D21: 137996.84 | E21: 351460.44 | F21: 521858.63 | G21: 379900.84 | H21: 150678.52 | I21: 194594.65 | J21: 352406.04 | K21: 320496.75 | L21: 296994.45 | M21: 477712.72 | S21: 3686093.37
A22: Мясная гастрономия | B22: 27310.79 | C22: 56786.53 | D22: 104413.98 | E22: 194491.57 | F22: 69201.54 | G22: 54003.1 | H22: 129291.02 | I22: 48325.67 | J22: 17101.46 | K22: 126253.65 | L22: 159700.39 | M22: 143474.1 | S22: 1130353.8
A23: Овощи и фрукты | B23: 666358.88 | C23: 532782.21 | D23: 135352.08 | E23: 809111.56 | F23: 507470.09 | G23: 612503.27 | H23: 409977.96 | I23: 580180.43 | J23: 935584.01 | K23: 796526.76 | L23: 1116840.77 | M23: 214768.45 | S23: 7317456.47
A24: Птица свежая | B24: 3660.37 | C24: 1548.39 | D24: 1683.87 | F24: 5373.03 | G24: 2548.05 | H24: 26.13 | I24: 1696.28 | K24: 5873.16 | L24: 2094.81 | M24: 1727.29 | S24: 26231.38
A25: Растительные масла,специи,соусы | B25: 19702.19 | C25: 95013.32 | D25: 50611.12 | E25: 98172.89 | F25: 93220.44 | G25: 189686.94 | H25: 58338.89 | I25: 53761.45 | J25: 25090.53 | K25: 65094.08 | L25: 78460.56 | M25: 99572.58 | S25: 926724.99
A26: Рыба и морепродукты | B26: 5929.57 | C26: 6400.48 | D26: 2992.59 | E26: 4202.25 | F26: 711.76 | G26: 8141.56 | H26: 600.63 | I26: 3298.29 | J26: 8559.81 | K26: 8618.48 | L26: 9928.2 | M26: 3278.88 | S26: 62662.5
A27: Свежее мясо | B27: 41519.83 | C27: 32664.86 | D27: 47911.68 | E27: 59794.92 | F27: 24460.34 | G27: 64395.34 | H27: 26385.64 | I27: 63522.93 | J27: 38250.62 | K27: 125213.51 | L27: 32090.98 | M27: 84122.9 | S27: 640333.55
A28: Собственное производство | B28: 865002.25 | C28: 566048.08 | E28: 586773.18 | F28: 966199.36 | G28: 766507.66 | H28: 840343.78 | I28: 676002.81 | J28: 1407502.25 | K28: 706153.44 | L28: 770864.36 | M28: 1777601.39 | S28: 9928998.56
A29: Соки | B29: 83073.23 | C29: 12979.65 | D29: 88442.05 | E29: 26062.27 | F29: 48198.02 | G29: 55089.38 | H29: 29801.71 | I29: 43426.74 | J29: 35277.56 | K29: 38340.61 | L29: 40381.77 | M29: 32925.11 | S29: 533998.1
A30: Средства личной гигиены | B30: 66309.81 | C30: -160705.3 | D30: 179981.65 | E30: 95107.54 | F30: 158536.88 | G30: 28041.13 | H30: 116046.43 | I30: 146881.45 | J30: 176782.65 | K30: 191897.07 | L30: 78212.96 | M30: 219846.02 | S30: 1296938.29
A31: Сыры | B31: 53610.22 | C31: 33600.19 | D31: 46092.06 | E31: 93515.51 | F31: 56482.26 | G31: 47745.67 | H31: 45437.15 | I31: 69352.87 | J31: 45976.76 | K31: 134189.45 | L31: 25699.65 | M31: 81555.77 | S31: 733257.56
A32: Табачные изделия и средства от похмелья | B32: 2083.27 | C32: 1046.7 | D32: 1465.36 | E32: 958.05 | F32: 3694.06 | G32: 2704.91 | H32: 2215.69 | I32: 3213.84 | J32: 412.11 | K32: 2001.24 | L32: 2258.68 | M32: 3426.51 | S32: 25480.42
A33: Товары для животных | B33: 3562.04 | C33: 3147.66 | D33: 1421.48 | E33: 121.24 | F33: 4544.18 | G33: 1572.95 | H33: 2866.33 | I33: 3940.81 | J33: 3389.32 | K33: 3280.7 | L33: 7496.85 | M33: 2732.2 | S33: 38075.76
A34: Хлеб,хлебопродукты | B34: 12196.74 | C34: 8110.59 | D34: 3958.1 | E34: 13420.92 | F34: 11911.63 | G34: 4023.69 | H34: 5038.21 | I34: 12258.94 | J34: 6698.96 | K34: 8279.66 | L34: 6421.72 | M34: 11965.75 | S34: 104284.91
A35: Гамма
A36: Алкогольные напитки, пиво | B36: 162788.08 | C36: 139388.1 | D36: 137050.04 | E36: 133692.98 | F36: 109976.03 | G36: 20281.45 | H36: 73162.41 | I36: 204296.49 | J36: 48252.46 | K36: 133294.4 | L36: 386167.69 | M36: 85745.8 | S36: 1634095.93
A37: Бакалея | B37: 154367.55 | C37: 72594.2 | D37: 168855.92 | E37: 115545.55 | F37: 71122.46 | G37: 51771.62 | H37: 83653.75 | I37: 159018.95 | J37: 90441.16 | K37: 153163.38 | L37: 156348.46 | M37: 234745.23 | S37: 1511628.23
A38: Безалкогольные напитки | B38: 41628.41 | D38: 17022.76 | E38: 18077.45 | F38: 19552.81 | G38: 27259.27 | H38: 59872.73 | I38: 44605.06 | J38: 47278.46 | K38: 44716.43 | L38: 24700.43 | M38: 42501.72 | S38: 387215.53
A39: Бытовая химия | B39: 34357.97 | C39: 82435.04 | D39: 8160.35 | E39: 83706.61 | F39: 61850.86 | G39: -3750.02 | H39: 69927.78 | I39: -2221.88 | J39: 38788.37 | K39: 11103.61 | L39: 25022.96 | M39: 84466.5 | S39: 493848.15
A40: Выпечка | B40: 270421.14 | C40: 133558.55 | D40: 234903.32 | E40: 364845.23 | F40: 95053.71 | G40: 263794.99 | H40: 762939.17 | I40: 386160.44 | J40: 190159.18 | K40: 412236.92 | L40: 302715.32 | M40: 250973.71 | S40: 3667761.68
A41: Детское питание | B41: 1054.15 | C41: 174.65 | D41: 3361.62 | E41: 2785.24 | F41: 74.68 | G41: 670.72 | H41: 919.01 | I41: 1254.21 | J41: 3240.12 | K41: 631.2 | L41: 2701.58 | M41: 2916.41 | S41: 19783.59
A42: Дието-, диабетические продукты | B42: 655.42 | C42: 269.33 | D42: 438.2 | E42: 756.51 | F42: 22.74 | G42: 131.51 | H42: 958.65 | I42: 735.83 | J42: 998.38 | K42: 711.43 | L42: 22.72 | M42: 659.41 | O42: 11.4 | S42: 6371.53
A43: Замороженные продукты | B43: 53589.91 | C43: 26903.15 | D43: 55654.32 | E43: 101353.29 | F43: 61610.08 | G43: 40650.11 | H43: 89626.59 | I43: 49518.04 | J43: 17015.73 | K43: 16349.92 | L43: 68930.24 | M43: 70783.84 | S43: 651985.22
A44: Кондитерские изделия | B44: 14252.86 | C44: 13876.3 | D44: 74639.95 | E44: 49609.79 | F44: 2051.79 | G44: 12731.48 | H44: 22148.7 | I44: 42403.64 | J44: 38587.02 | K44: 38336.91 | L44: 21336.09 | M44: 40670.15 | S44: 370644.68
A45: Консервы | B45: 40986.27 | C45: 42790.13 | D45: 57589.52 | E45: 38094.3 | F45: 83247.74 | G45: 44718.8 | H45: 96120.36 | I45: 7562.15 | J45: 52162.89 | K45: 33322.06 | L45: 94371.6 | M45: 60817.31 | S45: 651783.13
A46: Косметика и парфюмерия | B46: 40517.16 | C46: 12737.36 | D46: 56211.37 | E46: 30982.87 | F46: 27255.75 | G46: 30730.5 | H46: 132502.14 | I46: 84390.44 | J46: 39268.36 | K46: 24258.22 | L46: 32580.22 | M46: 71884.69 | S46: 583319.08
A47: Кофе, кофейные напитки, чай | B47: 71987.17 | C47: 35471.86 | D47: 39556.98 | E47: 42213.8 | F47: 89743.02 | G47: 22186.73 | H47: 62762.5 | I47: 67424.08 | K47: 105041.63 | L47: 106379.39 | M47: 64198.27 | S47: 706965.43
A48: Кулинария | B48: 557.75 | C48: 379.76 | D48: 1290.54 | E48: 890.15 | F48: 189.88 | G48: 208.99 | H48: 303.93 | I48: 833.11 | J48: 322.85 | K48: 208.14 | L48: 842.51 | M48: 360.78 | S48: 6388.39
A49: Молочные продукты, яйца, майонез | B49: 357413.95 | C49: 129799.32 | D49: 271301.83 | E49: 214168.16 | F49: 241404.24 | H49: 118208.28 | I49: 445160.82 | J49: 139842.4 | K49: 257313.27 | L49: 277216.65 | M49: 514404.96 | S49: 2966233.88
A50: Мясная гастрономия | B50: 98847.17 | C50: 18132.92 | D50: 20617.79 | E50: 136174.94 | F50: 56434.62 | G50: 80924.91 | H50: 59863.25 | I50: 25157.88 | J50: 214267.03 | K50: 111052.73 | L50: 68894.46 | M50: 27052.04 | N50: 11863.59 | S50: 929283.33
A51: Овощи и фрукты | B51: 17.97 | E51: 232.73 | F51: 11.98 | I51: 198.87 | J51: 55 | K51: 437.57 | M51: 111.96 | S51: 1066.08
A52: Птица свежая | B52: 10654.35 | C52: 15381.61 | D52: 4582.83 | E52: 14067.48 | F52: 33598.76 | G52: 10224.27 | I52: 21591.73 | J52: 15260.66 | K52: 25265.34 | L52: 23359.43 | M52: 20446.06 | S52: 194432.52
A53: Растительные масла,специи,соусы | C53: 70907.87 | D53: 59611.82 | E53: 39647.72 | F53: 27706.91 | G53: 53087.02 | H53: 98491.21 | I53: 43086.62 | J53: 36495.28 | K53: 26414.71 | L53: 127095.05 | M53: 124365.86 | S53: 706910.07
A54: Рыба и морепродукты | B54: 8239.13 | C54: 748.78 | D54: 11251.36 | E54: 8961.12 | F54: 8566.49 | G54: 4374.85 | H54: 10100.01 | I54: 10737.55 | J54: 2437.07 | K54: 8858.6 | L54: 7219.43 | M54: 6981.38 | S54: 88475.77
A55: Свежее мясо | B55: 40871.63 | C55: 29588.91 | D55: 15220.11 | E55: 60536.34 | F55: 35006.19 | G55: 10338.45 | H55: 51228.21 | I55: 22439.29 | J55: 24933.85 | K55: 36562.77 | L55: 8844.82 | M55: 16521.16 | S55: 352091.73
A56: Собственное производство | B56: 309510.08 | C56: 305208.73 | D56: 220145.03 | E56: 307682.1 | F56: 385873.23 | G56: 290503.18 | H56: 248321.15 | I56: 244655.86 | J56: 541960.1 | K56: 609819.39 | L56: 668495.75 | M56: 191023.87 | S56: 4323198.47
A57: Соки | B57: 18670.27 | C57: 37514.67 | D57: 8556.8 | E57: 16007.65 | F57: 58430.94 | G57: 63906.51 | H57: 18425.37 | I57: 45568.48 | J57: 15921.08 | K57: 29083.85 | L57: 13136 | M57: 40561.59 | S57: 365783.21
A58: Средства личной гигиены | B58: 50411.2 | C58: 90511.67 | D58: 60001.41 | E58: -9167.31 | F58: 42604.67 | G58: 138926.02 | H58: 64133.63 | I58: 79499.9 | J58: 113291.77 | K58: -104055.55 | L58: 142362.88 | M58: 91018.76 | S58: 759539.05
A59: Сыры | B59: 119984.14 | C59: 38567.57 | D59: 75712.06 | E59: 79544.13 | F59: 144359.49 | G59: 84431.33 | H59: 44429.71 | I59: 67825.97 | J59: 101811.05 | K59: 31515.88 | L59: 61718.19 | M59: 78895.79 | S59: 928795.31
A60: Табачные изделия и средства от похмелья | B60: 9106.99 | C60: 8258.03 | D60: 12005.95 | E60: 19628.5 | F60: 6961.36 | G60: 14232.83 | H60: 14161.74 | I60: 7017.89 | J60: 2436.79 | K60: 9642.75 | L60: 6664.6 | M60: 7040.49 | S60: 117157.92
A61: Товары для животных | B61: 3063.14 | C61: 3784.66 | D61: 5166.44 | E61: 6244.9 | F61: 1559.3 | G61: 3537.2 | H61: 6716.97 | I61: 3016.61 | J61: 1629.52 | K61: 986.03 | M61: 3343 | S61: 39047.77
A62: Хлеб,хлебопродукты | B62: 13583.34 | C62: 3441.43 | D62: 9556.08 | E62: 8089.06 | F62: 9815.11 | G62: 7013.14 | H62: 12424.21 | I62: 6591.14 | J62: 14438.25 | K62: 18464.99 | L62: 10400.81 | M62: 9189.69 | S62: 123007.25
A63: Дельта
A64: Алкогольные напитки, пиво | B64: 184902.14 | C64: 179911 | D64: 45916.32 | E64: 39672.6 | F64: 95036 | G64: 164766.5 | H64: 31666.15 | I64: 82390.91 | J64: 127918 | K64: 166398.077 | L64: 28937 | M64: 174605.53 | S64: 1322120.227
A65: Бакалея | B65: 103699 | C65: 110604 | D65: 45039 | E65: 150016 | F65: 103469.4 | G65: 77541.33 | H65: 35459.09 | I65: 79346 | J65: 62199.33 | K65: 142385.42 | L65: 17265.69 | M65: 143656 | S65: 1070680.26
A66: Безалкогольные напитки | B66: 7681 | C66: 18431 | D66: 13753.42 | E66: 20885 | F66: 19478.28 | G66: 14897 | H66: 21814 | I66: 47553.1 | J66: 28276.05 | K66: 72387.98 | L66: 15677.13 | M66: 28986.65 | S66: 309820.61
A67: Бытовая химия | B67: 43978.77 | D67: 42804.93 | E67: 133679.89 | F67: 30367.5 | G67: 26050.86 | H67: 102451.72 | I67: 34531 | J67: 135343.47 | K67: 32499 | L67: 38078.03 | M67: 60292.96 | S67: 680078.13
A68: Выпечка | B68: 74277.7 | C68: 164249.92 | D68: 25269.66 | E68: 202310.92 | F68: 97520.92 | G68: 126289.62 | H68: 80001.87 | I68: 206568.34 | J68: 120655 | K68: 112354.31 | L68: 116615.68 | M68: 281986.56 | S68: 1608100.5
A69: Детское питание | B69: 3318 | C69: 2247.83 | D69: 16598.37 | E69: 3139 | F69: 4575.68 | G69: 5028 | H69: 18216 | I69: 13051.57 | J69: 10439.1 | K69: 14559.96 | L69: 6462.74 | M69: 9401.04 | S69: 107037.29
A70: Дието-, диабетические продукты | B70: 1536 | C70: 102 | D70: 1149 | E70: 1216.92 | F70: 1077 | G70: 2191.68 | H70: 981.89 | I70: 1034 | J70: 1392.39 | K70: 981.29 | L70: 816.02 | M70: 225.74 | S70: 12703.93
A71: Замороженные продукты | B71: 79975.81 | C71: 32790 | D71: 19082 | E71: 60548.03 | F71: 99255.5 | G71: 52865 | H71: 15961 | I71: 53952 | J71: 52812.6 | L71: 51897.7 | M71: 9428 | S71: 528567.64
A72: Кондитерские изделия | B72: 66479.12 | C72: 81018.78 | D72: 39665.75 | E72: 44060 | F72: 26218 | G72: 37180 | H72: 62784.51 | I72: 23615 | J72: 20786.54 | K72: 65483.26 | L72: 23352.96 | M72: 41044.39 | S72: 531688.31
A73: Консервы | B73: 31523.4 | C73: 62307.71 | D73: 34098 | E73: 36640.38 | F73: 95467.93 | G73: 44254.75 | H73: 48949 | I73: 66306 | J73: 31952 | K73: 4071.93 | L73: 21241 | M73: 39900.66 | S73: 516712.76
A74: Косметика и парфюмерия | B74: 21267 | C74: 8717.92 | D74: 35114.16 | E74: 65461 | F74: 24095.49 | G74: 41091.86 | H74: 40019 | I74: 57455.08 | J74: 91167 | K74: 49823 | L74: 73841.35 | M74: 14588.81 | S74: 522641.67
A75: Кофе, кофейные напитки, чай | B75: 49464.93 | C75: 63404.78 | D75: 51136 | E75: 61076 | F75: 61701.8 | G75: 62501.34 | H75: 29742.07 | I75: 22757 | J75: 36111.22 | K75: 108976.2 | L75: 102161.14 | M75: 49024.1 | S75: 698056.58
A76: Кулинария | B76: 369 | C76: 1947 | D76: 1370.83 | G76: 4433.6 | H76: 3142.82 | I76: 2174 | J76: 1674.01 | K76: 1217 | L76: 1499.6 | M76: 2213.79 | S76: 20041.65
A77: Молочные продукты, яйца, майонез | B77: 55252.43 | C77: 169824 | D77: 202372 | E77: 109168.71 | F77: 185749.19 | G77: 206080.01 | H77: 169156 | I77: 75161.24 | J77: 155800.52 | K77: 97136.03 | L77: 124259.14 | M77: 56114 | S77: 1606073.27
A78: Мясная гастрономия | B78: 42250.68 | C78: 37562 | D78: 34868.96 | E78: 64851 | F78: 31687.62 | G78: 76219.56 | H78: 26330.5 | I78: 29884 | J78: 59936.66 | K78: 59859.8 | L78: 71939.67 | M78: 31651.86 | S78: 567042.31
A79: Овощи и фрукты | B79: 442450 | C79: 434506 | D79: 344011 | E79: 748674.33 | F79: 486374.13 | G79: 119004.44 | H79: 591948.95 | I79: 324792.96 | J79: 116831 | K79: 490682.06 | L79: 329006.68 | M79: 182263 | S79: 4610544.55
A80: Птица свежая | M80: 69 | S80: 69
A81: Растительные масла,специи,соусы | B81: 23486.55 | C81: 21606 | D81: 60955.21 | E81: 24570.59 | F81: 55128.5 | G81: 16600.99 | H81: 65086 | I81: 45528.9 | J81: 27396 | K81: 57604.12 | L81: 34639.44 | M81: 12562 | S81: 445164.3
A82: Рыба и морепродукты | B82: 931.35 | C82: 626.97 | D82: 2389 | E82: 3446 | F82: 3966.82 | G82: 2370.43 | H82: 3284.36 | I82: 3768 | J82: 9780.98 | K82: 2091 | L82: 3251.15 | M82: 5518.65 | S82: 41424.71
A83: Свежее мясо | B83: 82996.07 | C83: 51898 | D83: 11052 | E83: 106680.92 | F83: 39691 | G83: 40776.94 | H83: 40864.35 | I83: 25166.04 | J83: 54064 | K83: 63121.16 | L83: 44303.76 | M83: 59760.9 | S83: 620375.14
A84: Собственное производство | B84: 370152.05 | C84: 259053.32 | D84: 202369.65 | F84: 285837.43 | G84: 216945 | H84: 305409.66 | I84: 197337 | J84: 208095 | K84: 115161 | L84: 37087 | M84: 96994.67 | S84: 2294441.78
A85: Соки | B85: 23694 | C85: 29127 | D85: 63755.48 | E85: 68992.83 | F85: 61252.36 | G85: 28174.42 | H85: 36452 | I85: 35247.09 | J85: 72439 | K85: 54827.96 | L85: 22558 | M85: 19339.14 | S85: 515859.28
A86: Средства личной гигиены | B86: 108620.33 | C86: -112179.76 | D86: 107003 | E86: 56603.69 | F86: 13911.03 | G86: 67946.64 | H86: 90294 | I86: 50397 | J86: 89527.4 | K86: 29124.5 | L86: 58103 | M86: 71664.77 | S86: 631015.6
A87: Сыры | B87: 59783.87 | C87: 18731 | D87: 26495 | E87: 23320 | F87: 64342.36 | G87: 31524 | H87: 66506.53 | I87: 24260.9 | J87: 63177.9 | K87: 17320 | L87: 81008.04 | M87: 35845.7 | S87: 512315.3
A88: Табачные изделия и средства от похмелья | B88: 2523 | C88: 2145 | D88: 667 | E88: 4126.72 | F88: 3501.78 | G88: 2731.87 | H88: 1721 | I88: 1579.18 | J88: 4120.42 | K88: 2846.26 | L88: 11503 | M88: 1705.48 | S88: 39170.71
A89: Товары для животных | B89: 2120.8 | C89: 4904.47 | D89: 3298.7 | E89: 3114 | F89: 5499.11 | G89: 2001 | H89: 4198.3 | I89: 4662.06 | J89: 4321.65 | K89: 6169 | L89: 2791.154 | M89: 6328.02 | S89: 49408.264
A90: Хлеб,хлебопродукты | B90: 5327 | C90: 12344.08 | D90: 6056.48 | E90: 2881 | F90: 6968.4 | G90: 7205.7 | H90: 5383.06 | I90: 3387.94 | J90: 2952.9 | K90: 5728.73 | L90: 9864.94 | M90: 3950 | S90: 72050.23
A91: Бета
A92: Алкогольные напитки, пиво | B92: 79732.26 | C92: 33796.88 | D92: 32218.18 | E92: 9654.19 | F92: 5963.71 | G92: 13618.1 | H92: 78120.89 | I92: 16632.1 | J92: 25446.83 | K92: 27342.33 | L92: 21136.65 | M92: 64273.69 | S92: 407935.81
A93: Бакалея | B93: 7428.12 | C93: 32536.9 | D93: 26597.21 | E93: 11437.12 | F93: 12031.49 | G93: 3181.54 | H93: 46857.74 | J93: 23708.32 | K93: 37464.89 | L93: 15446.38 | M93: 12794.34 | S93: 229484.05
A94: Безалкогольные напитки | B94: 2721.01 | C94: 2933.26 | D94: 16038.8 | E94: 9846.37 | F94: 4485.06 | G94: 1559.82 | H94: 18679.27 | J94: 110257.22 | K94: 9067.84 | L94: 13302.08 | M94: 11346.07 | O94: 1676.72 | S94: 201913.52
A95: Бытовая химия | B95: 17072.34 | C95: 14486.7 | D95: 6222.14 | E95: 1264.17 | F95: 6478.52 | G95: 10362.73 | H95: 6615.56 | I95: 4542.29 | J95: 8353.87 | K95: 5124.22 | L95: 7474.96 | M95: 14679.47 | S95: 102676.97
A96: Выпечка | B96: 6054.62 | C96: 25142.77 | D96: 15978.46 | E96: 16017.89 | F96: 28386.38 | G96: 13668.36 | H96: 26511.08 | I96: 16446.94 | K96: 23116.2 | L96: 8902.07 | M96: 21138.63 | R96: 5133.29 | S96: 206496.69
A97: Детское питание | B97: 430.11 | C97: 1542.61 | D97: 921.5 | E97: 834.82 | F97: 381.97 | G97: 3325.36 | H97: 1049.67 | I97: 2368.33 | J97: 723.43 | K97: 1309.16 | L97: 269.03 | M97: 2390.24 | P97: 416.83 | S97: 15963.06
A98: Дието-, диабетические продукты | C98: 17.3 | G98: 238.32 | H98: 37.26 | I98: 69.31 | J98: 459.58 | K98: 15.03 | L98: 17.98 | M98: 22.7 | S98: 877.48
A99: Кондитерские изделия | B99: 17337.52 | C99: 1808.03 | D99: 21030.71 | E99: 17799.73 | F99: 22923.34 | G99: 5875.25 | H99: 12584.42 | I99: 26443.04 | J99: 10674.97 | K99: 13467.4 | L99: 12064.08 | M99: 9643.71 | S99: 171652.2
A100: Консервы | B100: 14181.77 | C100: 9657.92 | D100: 17915.56 | E100: 13961.11 | F100: 14037.23 | G100: 9092.68 | H100: 9361.97 | I100: 7133.55 | J100: 8645.46 | L100: 5848.21 | M100: 5335.12 | S100: 115170.58
A101: Косметика и парфюмерия | B101: 7340.06 | C101: 10042.13 | D101: 5464.44 | E101: 15431.36 | F101: 19785.57 | G101: 12620.79 | H101: 2998.94 | I101: 13899.73 | J101: 6593.99 | K101: 4458.37 | L101: 13050.99 | M101: 10029.12 | S101: 121715.49
A102: Кофе, кофейные напитки, чай | B102: 24145.35 | C102: 17276.54 | D102: 8930.78 | E102: 15287.94 | F102: 12425.29 | G102: 16102.8 | H102: 1975.93 | I102: 16720.84 | J102: 19906.64 | K102: 26501.73 | L102: 5152.71 | M102: 22850.1 | S102: 187276.65
A103: Молочные продукты, яйца, майонез | B103: 39561.21 | C103: 19191.64 | D103: 34307.74 | E103: 13296.96 | F103: 13125.46 | G103: 25712.08 | H103: 15918.34 | I103: 23154.13 | J103: 19427.86 | K103: 14134.51 | L103: 21319 | M103: 5652.75 | S103: 244801.68
A104: Мясная гастрономия | B104: 1553.88 | C104: 3358.74 | D104: 14909.25 | E104: 2775.99 | F104: 10052.77 | G104: 3413.92 | H104: 1080.21 | I104: 5677.23 | J104: 3795.66 | K104: 1186.44 | L104: 2056.59 | M104: 6189.55 | S104: 56050.23
A105: Овощи и фрукты | B105: 40289.06 | C105: 216683.35 | D105: 15998.55 | E105: 4703.52 | F105: 45772.11 | G105: 26960.29 | H105: 25938.57 | I105: 10324.09 | J105: -29537.02 | K105: 31001.86 | L105: 24508.99 | M105: 28478.06 | S105: 441121.43
A106: Растительные масла,специи,соусы | B106: 13235.15 | C106: 14963.21 | D106: 4283.88 | E106: 2941.03 | F106: 8161.86 | G106: 19015.74 | H106: 5940.23 | I106: 12290.79 | J106: 11655.78 | K106: 11929.2 | L106: 7969.99 | M106: 6707.84 | S106: 119094.7
A107: Собственное производство | B107: 10378.22 | C107: 4322.61 | D107: 1544.03 | E107: 17000.03 | F107: 21570.59 | G107: 4819.57 | H107: 10260.9 | I107: 13594.4 | J107: 4169.8 | K107: 15770.81 | L107: 2741.31 | M107: 12759.08 | S107: 118931.35
A108: Соки | B108: 3971.19 | C108: 8717.13 | D108: 5438.05 | E108: 1154.52 | F108: 5919.6 | G108: 3978.82 | H108: 5248.22 | I108: 13485.14 | J108: 8990.76 | K108: 8236.63 | L108: 16670.96 | M108: 13181.14 | S108: 94992.16
A109: Средства личной гигиены | B109: 16166.85 | C109: 958.9 | D109: 18620.93 | E109: 4894.35 | F109: -90320.28 | G109: 11732.08 | H109: -2753.83 | I109: 9341.83 | K109: 6188.17 | L109: -51718.92 | M109: 2421.83 | S109: -74468.09
A110: Сыры | B110: 2709.65 | C110: 3960.31 | D110: 8305.17 | E110: 1498.32 | F110: 8249.09 | G110: 2557.41 | H110: 9141.32 | I110: 1273.78 | J110: 2446.73 | K110: 2162.81 | L110: 1058.65 | M110: 9727.8 | S110: 53091.04
A111: Табачные изделия и средства от похмелья | B111: 77.43 | D111: 66.97 | E111: 73 | F111: 141.86 | G111: 29.97 | H111: 101.76 | I111: 35.32 | J111: 48.57 | K111: 203.06 | L111: 58.8 | M111: 157.82 | S111: 994.56
A112: Товары для животных | B112: 546.67 | C112: 1134.43 | D112: 513.91 | E112: 1162.77 | F112: 625.74 | G112: 2759.84 | H112: 830.22 | I112: 1440.18 | J112: 1123.41 | K112: 766.81 | L112: 602.12 | M112: 600.45 | S112: 12106.55
A113: Хлеб,хлебопродукты | B113: 129.86 | C113: 570.73 | D113: 1138.45 | E113: 593.48 | F113: 1697.91 | G113: 1266.06 | H113: 103.96 | I113: 1570.37 | J113: 523.33 | K113: 2954.93 | L113: 1502.79 | M113: 1775.7 | S113: 13827.57
A114: Общий итог | B114: 7477362.76 | C114: 6125700.21 | D114: 5812538.11 | E114: 7646908.2 | F114: 7336068.82 | G114: 5984191.13 | H114: 7320054.56 | I114: 7717400.9 | J114: 7776502.24 | K114: 7394712.817 | L114: 8359339.284 | M114: 8430272.11 | N114: 12423.11 | O114: 1688.12 | P114: 874.86 | Q114: 160 | R114: 5133.29 | S114: 87401330.52

Sheet Data
A1: Магазин | B1: Дата | C1: Товар | D1: Группа | E1: Закупка | F1: Продажа | G1: Прибыль | H1: Наценка
A2: Альфа | B2: 2011-01-09 | C2: Хлеб,хлебопродукты | D2: Кондитерка | E2: 14902 | F2: 17597.52 | G2: =F2-E2 -> 2695.52 | H2: =(F2-E2)/E2 -> 0.1808831029
A3: Альфа | B3: 2011-05-07 | C3: Выпечка | D3: Кондитерка | E3: 354936.41 | F3: 483645.88 | G3: 128709.47 | H3: =(F3-E3)/E3 -> 0.3626268435
A4: Альфа | B4: 2011-11-06 | C4: Кондитерские изделия | D4: Кондитерка | E4: 150821.01 | F4: 164169.81 | G4: 13348.8 | H4: 0.08850756271
A5: Альфа | B5: 2011-05-19 | C5: Дието-, диабетические продукты | D5: Кондитерка | E5: 6301 | F5: 7171.26 | G5: =F5-E5 -> 870.26 | H5: 0.138114585
A6: Альфа | B6: 2011-05-13 | C6: Детское питание | D6: Кондитерка | E6: 5402 | F6: 6209.69 | G6: 807.69 | H6: 0.1495168456
A7: Альфа | B7: 2011-08-10 | C7: Кофе, кофейные напитки, чай | D7: Бакалея | E7: 219822.79 | F7: 240800.62 | G7: 20977.83 | H7: 0.09543064211
A8: Альфа | B8: 2011-06-22 | C8: Бакалея | D8: Бакалея | E8: 846540.17 | F8: 899207.33 | G8: 52667.16 | H8: 0.06221460229
A9: Альфа | B9: 2011-07-12 | C9: Консервы | D9: Бакалея | E9: 155003.84 | F9: 171174.32 | G9: 16170.48 | H9: 0.1043230929
A10: Альфа | B10: 2011-02-03 | C10: Растительные масла,специи,соусы | D10: Бакалея | E10: 264540.7 | F10: 280332.2 | G10: 15791.5 | H10: 0.05969402818
A11: Альфа | B11: 2011-02-22 | C11: Алкогольные напитки, пиво | D11: Напитки | E11: 1642185.39 | F11: 1675913.87 | G11: 33728.48 | H11: 0.02053877729
A12: Альфа | B12: 2011-12-12 | C12: Безалкогольные напитки | D12: Напитки | E12: 198209.29 | F12: 206601.1 | G12: 8391.81 | H12: 0.04233812653
A13: Альфа | B13: 2011-02-05 | C13: Соки | D13: Напитки | E13: 213525.01 | F13: 226504.66 | G13: 12979.65 | H13: 0.06078749276
A14: Альфа | B14: 2011-08-23 | C14: Табачные изделия и средства от похмелья | D14: Напитки | E14: 21356.6 | F14: 22320.58 | G14: 963.98 | H14: 0.04513733459
A15: Альфа | B15: 2011-12-21 | C15: Мясная гастрономия | D15: ОУХ | E15: 236199.61 | F15: 263881.02 | G15: 27681.41 | H15: 0.1171949861
A16: Альфа | B16: 2011-04-15 | C16: Замороженные продукты | D16: ОУХ | E16: 57529.37 | F16: 66457.96 | G16: 8928.59 | H16: 0.1552005523
A17: Альфа | B17: 2011-11-11 | C17: Молочные продукты, яйца, майонез | D17: ОУХ | E17: 826766.17 | F17: 902466.54 | G17: 75700.37 | H17: 0.09156200719
A18: Альфа | B18: 2011-04-01 | C18: Сыры | D18: ОУХ | E18: 137484.36 | F18: 154479.41 | G18: 16995.05 | H18: 0.1236144242
A19: Альфа | B19: 2011-09-09 | C19: Овощи и фрукты | D19: Овощи и фрукты | E19: 1121886.78 | F19: 1332629.01 | G19: 210742.23 | H19: 0.1878462549
A20: Альфа | B20: 2011-10-02 | C20: Свежее мясо | D20: Кулинария мясо птицы рыбы | E20: 12915.14 | F20: 28576.43 | G20: 15661.29 | H20: 1.212630293
A21: Альфа | B21: 2011-11-05 | C21: Птица свежая | D21: Кулинария мясо птицы рыбы | E21: 11370.08 | F21: 12564.56 | G21: 1194.48 | H21: 0.1050546698
A22: Альфа | B22: 2011-05-31 | C22: Собственное производство | D22: Кулинария мясо птицы рыбы | E22: 228397.52 | F22: 459291.61 | G22: 230894.09 | H22: 1.01093081
A23: Альфа | B23: 2012-02-14 | C23: Кулинария | D23: Кулинария мясо птицы рыбы | E23: 266 | F23: 825.52 | G23: 559.52 | H23: 2.103458647
A24: Альфа | B24: 2011-12-09 | C24: Товары для животных | D24: Сопутствующие товары | E24: 1315.48 | F24: 1709.9 | G24: 394.42 | H24: 0.29982972
A25: Альфа | B25: 2011-01-29 | C25: Косметика и парфюмерия | D25: Сопутствующие товары | E25: 199015.78 | F25: 218801.31 | G25: 19785.53 | H25: 0.09941689046
A26: Альфа | B26: 2011-08-03 | C26: Средства личной гигиены | D26: Сопутствующие товары | E26: 551119.04 | F26: 579769.25 | G26: 28650.21 | H26: 0.05198552022
A27: Альфа | B27: 2011-03-18 | C27: Бытовая химия | D27: Сопутствующие товары | E27: 389937.87 | F27: 413650.38 | G27: 23712.51 | H27: 0.06081099535
A28: Альфа | B28: 2011-02-03 | C28: Хлеб,хлебопродукты | D28: Кондитерка | E28: 23182 | F28: 26598.32 | G28: 3416.32 | H28: 0.1473695108
A29: Альфа | B29: 2011-08-18 | C29: Выпечка | D29: Кондитерка | E29: 318564.89 | F29: 393633.76 | G29: 75068.87 | H29: 0.2356470294
A30: Альфа | B30: 2011-02-24 | C30: Кондитерские изделия | D30: Кондитерка | E30: 126529.53 | F30: 139669.62 | G30: 13140.09 | H30: 0.1038499866
A31: Альфа | B31: 2011-02-21 | C31: Дието-, диабетические продукты | D31: Кондитерка | E31: 3057 | F31: 3419.01 | G31: 362.01 | H31: 0.1184200196
A32: Альфа | B32: 2011-09-13 | C32: Детское питание | D32: Кондитерка | E32: 3986 | F32: 4583.64 | G32: 597.64 | H32: 0.1499347717
A33: Альфа | B33: 2011-11-07 | C33: Кофе, кофейные напитки, чай | D33: Бакалея | E33: 281781.92 | F33: 289715.66 | G33: 7933.74 | H33: 0.02815560345
A34: Альфа | B34: 2011-08-03 | C34: Бакалея | D34: Бакалея | E34: 690201.65 | F34: 736400.32 | G34: 46198.67 | H34: 0.06693503268
A35: Альфа | B35: 2011-10-02 | C35: Консервы | D35: Бакалея | E35: 184643.88 | F35: 203230.58 | G35: 18586.7 | H35: 0.1006624211
A36: Альфа | B36: 2011-04-25 | C36: Растительные масла,специи,соусы | D36: Бакалея | E36: 427475.1 | F36: 446496.36 | G36: 19021.26 | H36: 0.04449676718
A37: Альфа | B37: 2011-11-29 | C37: Алкогольные напитки, пиво | D37: Напитки | E37: 942577.51 | F37: 972273.95 | G37: 29696.44 | H37: 0.03150556817
A38: Альфа | B38: 2011-12-20 | C38: Безалкогольные напитки | D38: Напитки | E38: 216600.14 | F38: 226302.13 | G38: 9701.99 | H38: 0.04479216865
A39: Альфа | B39: 2011-03-05 | C39: Соки | D39: Напитки | E39: 201591.99 | F39: 211940.45 | G39: 10348.46 | H39: 0.05133368642
A40: Альфа | B40: 2011-08-14 | C40: Табачные изделия и средства от похмелья | D40: Напитки | E40: 54630.6 | F40: 55430.13 | G40: 799.53 | H40: 0.01463520445
A41: Альфа | B41: 2011-07-21 | C41: Мясная гастрономия | D41: ОУХ | E41: 211193.42 | F41: 232514.43 | G41: 21321.01 | H41: 0.1009548972
A42: Альфа | B42: 2011-08-18 | C42: Замороженные продукты | D42: ОУХ | E42: 30119.42 | F42: 37203.76 | G42: 7084.34 | H42: 0.2352083805
A43: Альфа | B43: 2011-09-13 | C43: Молочные продукты, яйца, майонез | D43: ОУХ | E43: 933452.07 | F43: 1016780.56 | G43: 83328.49 | H43: 0.08926916837
A44: Альфа | B44: 2011-10-11 | C44: Сыры | D44: ОУХ | E44: 46822.96 | F44: 53031.72 | G44: 6208.76 | H44: 0.1326007583
A45: Альфа | B45: 2011-02-09 | C45: Овощи и фрукты | D45: Овощи и фрукты | E45: 1056832.44 | F45: 1271695.59 | G45: 214863.15 | H45: 0.2033086248
A46: Альфа | B46: 2011-02-17 | C46: Свежее мясо | D46: Кулинария мясо птицы рыбы | E46: 9993.66 | F46: 22111.46 | G46: 12117.8 | H46: 1.212548756
A47: Альфа | B47: 2011-12-15 | C47: Птица свежая | D47: Кулинария мясо птицы рыбы | E47: 8142.45 | F47: 8999.34 | G47: 856.89 | H47: 0.1052373671
A48: Альфа | B48: 2011-12-30 | C48: Собственное производство | D48: Кулинария мясо птицы рыбы | E48: 232865.32 | F48: 460482.21 | G48: 227616.89 | H48: 0.9774615215
A49: Альфа | B49: 2012-10-06 | C49: Кулинария | D49: Кулинария мясо птицы рыбы | E49: 76 | F49: 236 | G49: 160 | H49: 2.105263158
A50: Альфа | B50: 2011-06-21 | C50: Товары для животных | D50: Сопутствующие товары | E50: 1705.72 | F50: 2217.24 | G50: 511.52 | H50: 0.2998850925
A51: Альфа | B51: 2011-04-05 | C51: Косметика и парфюмерия | D51: Сопутствующие товары | E51: 216285.59 | F51: 235829.92 | G51: 19544.33 | H51: 0.09036353277
A52: Альфа | B52: 2011-05-11 | C52: Средства личной гигиены | D52: Сопутствующие товары | E52: 501703.57 | F52: 532419.7 | G52: 30716.13 | H52: 0.06122366241
A53: Альфа | B53: 2011-01-31 | C53: Бытовая химия | D53: Сопутствующие товары | E53: 430318.81 | F53: 457070.43 | G53: 26751.62 | H53: 0.06216697801
A54: Альфа | B54: 2011-07-11 | C54: Хлеб,хлебопродукты | D54: Кондитерка | E54: 15475 | F54: 18078.11 | G54: 2603.11 | H54: 0.1682138934
A55: Альфа | B55: 2011-04-17 | C55: Выпечка | D55: Кондитерка | E55: 286140.86 | F55: 366852.63 | G55: 80711.77 | H55: 0.2820700616
A56: Альфа | B56: 2011-11-27 | C56: Кондитерские изделия | D56: Кондитерка | E56: 119661.79 | F56: 132543.48 | G56: 12881.69 | H56: 0.1076508215
A57: Альфа | B57: 2011-10-07 | C57: Дието-, диабетические продукты | D57: Кондитерка | E57: 5045 | F57: 5794.7 | G57: 749.7 | H57: 0.1486025768
A58: Альфа | B58: 2011-10-07 | C58: Детское питание | D58: Кондитерка | E58: 3654 | F58: 4203 | G58: 549 | H58: 0.1502463054
A59: Альфа | B59: 2011-12-18 | C59: Кофе, кофейные напитки, чай | D59: Бакалея | E59: 239213.68 | F59: 253032.19 | G59: 13818.51 | H59: 0.05776638694
A60: Альфа | B60: 2011-12-15 | C60: Бакалея | D60: Бакалея | E60: 624136.11 | F60: 669945.25 | G60: 45809.14 | H60: 0.07339607381
A61: Альфа | B61: 2011-08-30 | C61: Консервы | D61: Бакалея | E61: 152311.51 | F61: 168782.42 | G61: 16470.91 | H61: 0.1081396278
A62: Альфа | B62: 2011-03-13 | C62: Растительные масла,специи,соусы | D62: Бакалея | E62: 344656.89 | F62: 361910.97 | G62: 17254.08 | H62: 0.05006161345
A63: Альфа | B63: 2011-07-28 | C63: Алкогольные напитки, пиво | D63: Напитки | E63: 495989.49 | F63: 534612.53 | G63: 38623.04 | H63: 0.0778706823
A64: Альфа | B64: 2011-09-09 | C64: Безалкогольные напитки | D64: Напитки | E64: 195960.3 | F64: 204246.57 | G64: 8286.27 | H64: 0.04228545272
A65: Альфа | B65: 2011-01-16 | C65: Соки | D65: Напитки | E65: 206041.74 | F65: 217428.94 | G65: 11387.2 | H65: 0.05526647174
A66: Альфа | B66: 2011-07-25 | C66: Табачные изделия и средства от похмелья | D66: Напитки | E66: 32340 | F66: 33407.23 | G66: =F66-E66 -> 1067.23 | H66: 0.03300030921
A67: Альфа | B67: 2011-03-07 | C67: Мясная гастрономия | D67: ОУХ | E67: 194684.49 | F67: 212403.14 | G67: 17718.65 | H67: =(F67-E67)/E67 -> 0.09101212942
A68: Альфа | B68: 2011-12-22 | C68: Замороженные продукты | D68: ОУХ | E68: 40317.52 | F68: 45076.96 | G68: 4759.44 | H68: 0.1180489276
A69: Альфа | B69: 2011-02-11 | C69: Молочные продукты, яйца, майонез | D69: ОУХ | E69: 885869.19 | F69: 966075.13 | G69: 80205.94 | H69: 0.09053925896
A70: Альфа | B70: 2011-10-26 | C70: Сыры | D70: ОУХ | E70: 121041.9 | F70: 137256 | G70: 16214.1 | H70: 0.1339544406
A71: Альфа | B71: 2011-04-06 | C71: Овощи и фрукты | D71: Овощи и фрукты | E71: 1015632.52 | F71: 1221084.74 | G71: 205452.22 | H71: 0.2022899188
A72: Альфа | B72: 2011-06-12 | C72: Свежее мясо | D72: Кулинария мясо птицы рыбы | E72: 12750.03 | F72: 27937.98 | G72: 15187.95 | H72: 1.191208962
A73: Альфа | B73: 2011-10-13 | C73: Птица свежая | D73: Кулинария мясо птицы рыбы | E73: 11761.46 | F73: 13003.59 | G73: 1242.13 | H73: 0.1056101879
A74: Альфа | B74: 2011-10-20 | C74: Собственное производство | D74: Кулинария мясо птицы рыбы | E74: 215740.93 | F74: 422115.18 | G74: 206374.25 | H74: 0.9565836673
A75: Альфа | B75: 2011-08-07 | C75: Кулинария | D75: Кулинария мясо птицы рыбы | E75: 361 | F75: 1120.82 | G75: 759.82 | H75: 2.104764543
A76: Альфа | B76: 2011-11-02 | C76: Товары для животных | D76: Сопутствующие товары | E76: 2133.96 | F76: 2773.79 | G76: 639.83 | H76: 0.2998322368
A77: Альфа | B77: 2011-09-02 | C77: Косметика и парфюмерия | D77: Сопутствующие товары | E77: 211687.49 | F77: 234305.8 | G77: 22618.31 | H77: 0.106847646
A78: Альфа | B78: 2011-03-19 | C78: Средства личной гигиены | D78: Сопутствующие товары | E78: 528975.64 | F78: 562119 | G78: 33143.36 | H78: 0.06265573969
A79: Альфа | B79: 2011-05-28 | C79: Бытовая химия | D79: Сопутствующие товары | E79: 398531.34 | F79: 421960.1 | G79: 23428.76 | H79: 0.05878774804
A80: Альфа | B80: 2011-07-20 | C80: Хлеб,хлебопродукты | D80: Кондитерка | E80: 14470 | F80: 16905.1 | G80: 2435.1 | H80: 0.1682861092
A81: Альфа | B81: 2011-05-18 | C81: Выпечка | D81: Кондитерка | E81: 373657.92 | F81: 448204.51 | G81: 74546.59 | H81: 0.1995049108
A82: Альфа | B82: 2011-10-20 | C82: Кондитерские изделия | D82: Кондитерка | E82: 117557.83 | F82: 129891.23 | G82: 12333.4 | H82: 0.1049134711
A83: Альфа | B83: 2012-09-27 | C83: Дието-, диабетические продукты | D83: Кондитерка | E83: 4531 | F83: 4989.03 | G83: 458.03 | H83: 0.10108806
A84: Альфа | B84: 2011-06-27 | C84: Детское питание | D84: Кондитерка | E84: 2314 | F84: 2661.94 | G84: 347.94 | H84: 0.1503630078
A85: Альфа | B85: 2011-01-03 | C85: Кофе, кофейные напитки, чай | D85: Бакалея | E85: 256245.69 | F85: 271388.45 | G85: 15142.76 | H85: 0.0590946915
A86: Альфа | B86: 2011-11-01 | C86: Бакалея | D86: Бакалея | E86: 827350.94 | F86: 875192.82 | G86: 47841.88 | H86: 0.05782537698
A87: Альфа | B87: 2011-02-14 | C87: Консервы | D87: Бакалея | E87: 165404.28 | F87: 181465.43 | G87: 16061.15 | H87: 0.09710238453
A88: Альфа | B88: 2011-02-18 | C88: Растительные масла,специи,соусы | D88: Бакалея | E88: 409805.45 | F88: 429313.54 | G88: 19508.09 | H88: 0.04760329566
A89: Альфа | B89: 2011-12-03 | C89: Алкогольные напитки, пиво | D89: Напитки | E89: 566883.78 | F89: 579053.32 | G89: 12169.54 | H89: 0.02146743377
A90: Альфа | B90: 2011-10-14 | C90: Безалкогольные напитки | D90: Напитки | E90: 245222.89 | F90: 256680.55 | G90: 11457.66 | H90: 0.04672345228
A91: Альфа | B91: 2011-06-13 | C91: Соки | D91: Напитки | E91: 235750 | F91: 248232.85 | G91: 12482.85 | H91: 0.0529495228
A92: Альфа | B92: 2011-11-17 | C92: Табачные изделия и средства от похмелья | D92: Напитки | E92: 20418.4 | F92: 20923.73 | G92: 505.33 | H92: 0.02474875602
A93: Альфа | B93: 2011-10-05 | C93: Мясная гастрономия | D93: ОУХ | E93: 284351.31 | F93: 312083.03 | G93: 27731.72 | H93: 0.09752626074
A94: Альфа | B94: 2011-04-16 | C94: Замороженные продукты | D94: ОУХ | E94: 104427.6 | F94: 115482.92 | G94: 11055.32 | H94: 0.1058658822
A95: Альфа | B95: 2011-02-11 | C95: Молочные продукты, яйца, майонез | D95: ОУХ | E95: 969901.63 | F95: 1054134.86 | G95: 84233.23 | H95: 0.08684718882
A96: Альфа | B96: 2011-08-07 | C96: Сыры | D96: ОУХ | E96: 140090.94 | F96: 157668.45 | G96: 17577.51 | H96: 0.1254721397
A97: Альфа | B97: 2011-09-17 | C97: Овощи и фрукты | D97: Овощи и фрукты | E97: 1120393.94 | F97: 1337243.08 | G97: 216849.14 | H97: 0.1935472268
A98: Альфа | B98: 2011-05-11 | C98: Свежее мясо | D98: Кулинария мясо птицы рыбы | E98: 11058.12 | F98: 23825 | G98: 12766.88 | H98: 1.154525362
A99: Альфа | B99: 2011-05-29 | C99: Птица свежая | D99: Кулинария мясо птицы рыбы | E99: 17365.95 | F99: 19239.45 | G99: 1873.5 | H99: 0.1078835307
A100: Альфа | B100: 2011-06-26 | C100: Собственное производство | D100: Кулинария мясо птицы рыбы | E100: 200239.28 | F100: 401310.83 | G100: 201071.55 | H100: 1.004156377
A101: Альфа | B101: 2011-01-06 | C101: Кулинария | D101: Кулинария мясо птицы рыбы | E101: 133 | F101: 413 | G101: 280 | H101: 2.105263158
A102: Альфа | B102: 2011-10-25 | C102: Товары для животных | D102: Сопутствующие товары | E102: 711.6 | F102: 925 | G102: 213.4 | H102: 0.2998875773
A103: Альфа | B103: 2011-02-26 | C103: Косметика и парфюмерия | D103: Сопутствующие товары | E103: 216388.36 | F103: 235890.15 | G103: 19501.79 | H103: 0.09012402516
A104: Альфа | B104: 2011-02-10 | C104: Средства личной гигиены | D104: Сопутствующие товары | E104: 504392.34 | F104: 543249.2 | G104: 38856.86 | H104: 0.07703697483
A105: Альфа | B105: 2011-09-30 | C105: Бытовая химия | D105: Сопутствующие товары | E105: 381272.21 | F105: 404586.12 | G105: 23313.91 | H105: 0.06114767714
A106: Альфа | B106: 2011-01-07 | C106: Хлеб,хлебопродукты | D106: Кондитерка | E106: 10881 | F106: 12727.45 | G106: 1846.45 | H106: 0.169694881
A107: Альфа | B107: 2011-08-13 | C107: Выпечка | D107: Кондитерка | E107: 453554.61 | F107: 545606.09 | G107: 92051.48 | H107: 0.2029556705
A108: Альфа | B108: 2011-10-15 | C108: Кондитерские изделия | D108: Кондитерка | E108: 135409.35 | F108: 151477.27 | G108: 16067.92 | H108: 0.1186618206
A109: Альфа | B109: 2011-10-25 | C109: Дието-, диабетические продукты | D109: Кондитерка | E109: 4591 | F109: 4979.13 | G109: 388.13 | H109: 0.08454149423
A110: Альфа | B110: 2011-10-17 | C110: Детское питание | D110: Кондитерка | E110: 4550 | F110: 5232.62 | G110: 682.62 | H110: 0.1500263736
A111: Альфа | B111: 2011-08-10 | C111: Кофе, кофейные напитки, чай | D111: Бакалея | E111: 250739.52 | F111: 272928.93 | G111: 22189.41 | H111: 0.08849586216
A112: Альфа | B112: 2011-02-08 | C112: Бакалея | D112: Бакалея | E112: 745928.41 | F112: 800276.61 | G112: 54348.2 | H112: 0.07285980702
A113: Альфа | B113: 2011-03-27 | C113: Консервы | D113: Бакалея | E113: 175935.22 | F113: 192630.43 | G113: 16695.21 | H113: 0.09489407522
A114: Альфа | B114: 2011-08-27 | C114: Растительные масла,специи,соусы | D114: Бакалея | E114: 372338.91 | F114: 395971.19 | G114: 23632.28 | H114: 0.06346981034
A115: Альфа | B115: 2011-11-28 | C115: Алкогольные напитки, пиво | D115: Напитки | E115: 946750.28 | F115: 1014530.87 | G115: 67780.59 | H115: 0.07159289142
A116: Альфа | B116: 2011-10-17 | C116: Безалкогольные напитки | D116: Напитки | E116: 238323.69 | F116: 249772.27 | G116: 11448.58 | H116: 0.04803794369
A117: Альфа | B117: 2011-08-24 | C117: Соки | D117: Напитки | E117: 277017.25 | F117: 291314.71 | G117: 14297.46 | H117: 0.05161216495
A118: Альфа | B118: 2011-03-31 | C118: Табачные изделия и средства от похмелья | D118: Напитки | E118: 16249.6 | F118: 16566.43 | G118: 316.83 | H118: 0.01949771071
A119: Альфа | B119: 2011-11-24 | C119: Рыба и морепродукты | D119: ОУХ | E119: 9675 | F119: 10857.68 | G119: 1182.68 | H119: 0.1222408269
A120: Альфа | B120: 2011-10-11 | C120: Мясная гастрономия | D120: ОУХ | E120: 303395.88 | F120: 332939.28 | G120: 29543.4 | H120: 0.09737574551
A121: Альфа | B121: 2011-01-29 | C121: Замороженные продукты | D121: ОУХ | E121: 156748.41 | F121: 169281.96 | G121: 12533.55 | H121: 0.07995966275
A122: Альфа | B122: 2011-01-19 | C122: Молочные продукты, яйца, майонез | D122: ОУХ | E122: 904585.96 | F122: 986962.97 | G122: 82377.01 | H122: 0.09106598338
A123: Альфа | B123: 2011-06-12 | C123: Сыры | D123: ОУХ | E123: 155647.66 | F123: 176268.2 | G123: 20620.54 | H123: 0.1324821716
A124: Альфа | B124: 2011-07-09 | C124: Овощи и фрукты | D124: Овощи и фрукты | E124: 1241720.55 | F124: 1466299.85 | G124: 224579.3 | H124: 0.1808613862
A125: Альфа | B125: 2011-12-16 | C125: Свежее мясо | D125: Кулинария мясо птицы рыбы | E125: 12188.16 | F125: 26819.9 | G125: 14631.74 | H125: 1.200488015
A126: Альфа | B126: 2011-05-03 | C126: Птица свежая | D126: Кулинария мясо птицы рыбы | E126: 8478.31 | F126: 9372.78 | G126: 894.47 | H126: 0.1055009784
A127: Альфа | B127: 2011-01-16 | C127: Собственное производство | D127: Кулинария мясо птицы рыбы | E127: 239982.77 | F127: 474449.18 | G127: 234466.41 | H127: 0.9770135164
A128: Альфа | B128: 2011-08-04 | C128: Кулинария | D128: Кулинария мясо птицы рыбы | E128: 247 | F128: 766.83 | G128: 519.83 | H128: 2.104574899
A129: Альфа | B129: 2011-05-22 | C129: Товары для животных | D129: Сопутствующие товары | E129: 1437.44 | F129: 1867.13 | G129: 429.69 | H129: 0.2989272596
A130: Альфа | B130: 2011-05-16 | C130: Косметика и парфюмерия | D130: Сопутствующие товары | E130: 228994.39 | F130: 249300.83 | G130: =F130-E130 -> 20306.44 | H130: 0.08867658286
A131: Альфа | B131: 2011-03-20 | C131: Средства личной гигиены | D131: Сопутствующие товары | E131: 596715.33 | F131: 639358.88 | G131: 42643.55 | H131: =(F131-E131)/E131 -> 0.07146380838
A132: Альфа | B132: 2011-07-01 | C132: Бытовая химия | D132: Сопутствующие товары | E132: 447875.21 | F132: 475710.64 | G132: 27835.43 | H132: 0.06214996807
A133: Альфа | B133: 2011-08-26 | C133: Хлеб,хлебопродукты | D133: Кондитерка | E133: 17343 | F133: 20457.13 | G133: 3114.13 | H133: 0.1795612063
A134: Альфа | B134: 2011-11-13 | C134: Выпечка | D134: Кондитерка | E134: 553352.85 | F134: 659189.61 | G134: 105836.76 | H134: 0.1912645069
A135: Альфа | B135: 2011-02-18 | C135: Кондитерские изделия | D135: Кондитерка | E135: 187334.15 | F135: 208164.29 | G135: 20830.14 | H135: 0.1111924334
A136: Альфа | B136: 2011-10-09 | C136: Дието-, диабетические продукты | D136: Кондитерка | E136: 12141 | F136: 13668.66 | G136: 1527.66 | H136: 0.1258265382
A137: Альфа | B137: 2011-12-24 | C137: Детское питание | D137: Кондитерка | E137: 176 | F137: 179.49 | G137: 3.49 | H137: 0.01982954545
A138: Альфа | B138: 2011-09-07 | C138: Кофе, кофейные напитки, чай | D138: Бакалея | E138: 259594.01 | F138: 286743.54 | G138: 27149.53 | H138: 0.104584578
A139: Альфа | B139: 2011-07-14 | C139: Бакалея | D139: Бакалея | E139: 1048995.39 | F139: 1119846.1 | G139: 70850.71 | H139: 0.06754148843
A140: Альфа | B140: 2011-04-13 | C140: Консервы | D140: Бакалея | E140: 237267.79 | F140: 259471.56 | G140: 22203.77 | H140: 0.09358105455
A141: Альфа | B141: 2011-07-29 | C141: Растительные масла,специи,соусы | D141: Бакалея | E141: 474253.91 | F141: 504438.91 | G141: 30185 | H141: 0.0636473403
A142: Альфа | B142: 2011-10-13 | C142: Алкогольные напитки, пиво | D142: Напитки | E142: 895284.99 | F142: 957496.01 | G142: 62211.02 | H142: 0.06948739306
A143: Альфа | B143: 2011-11-02 | C143: Безалкогольные напитки | D143: Напитки | E143: 290216.54 | F143: 304920.25 | G143: 14703.71 | H143: 0.05066461753
A144: Альфа | B144: 2011-10-27 | C144: Соки | D144: Напитки | E144: 308782.5 | F144: 329397.58 | G144: 20615.08 | H144: 0.06676246225
A145: Альфа | B145: 2011-11-12 | C145: Табачные изделия и средства от похмелья | D145: Напитки | E145: 21282.8 | F145: 22054.3 | G145: 771.5 | H145: 0.03624992952
A146: Альфа | B146: 2011-06-08 | C146: Рыба и морепродукты | D146: ОУХ | E146: 30788 | F146: 33678.63 | G146: 2890.63 | H146: 0.0938882032
A147: Альфа | B147: 2011-07-20 | C147: Мясная гастрономия | D147: ОУХ | E147: 368217.84 | F147: 420899.44 | G147: 52681.6 | H147: 0.1430718294
A148: Альфа | B148: 2011-12-07 | C148: Замороженные продукты | D148: ОУХ | E148: 196499.23 | F148: 218939.1 | G148: 22439.87 | H148: 0.1141982592
A149: Альфа | B149: 2011-01-13 | C149: Молочные продукты, яйца, майонез | D149: ОУХ | E149: 1110807.09 | F149: 1212976.03 | G149: 102168.94 | H149: 0.09197721271
A150: Альфа | B150: 2011-08-31 | C150: Сыры | D150: ОУХ | E150: 186971.36 | F150: 210417.91 | G150: 23446.55 | H150: 0.1254018262
A151: Альфа | B151: 2011-11-25 | C151: Овощи и фрукты | D151: Овощи и фрукты | E151: 1383643.01 | F151: 1660848.09 | G151: 277205.08 | H151: 0.2003443648
A152: Альфа | B152: 2011-12-29 | C152: Свежее мясо | D152: Кулинария мясо птицы рыбы | E152: 18600.9 | F152: 40696.05 | G152: 22095.15 | H152: 1.187853814
A153: Альфа | B153: 2011-10-08 | C153: Птица свежая | D153: Кулинария мясо птицы рыбы | E153: 21411.75 | F153: 23799.13 | G153: 2387.38 | H153: 0.1114985931
A154: Альфа | B154: 2011-12-20 | C154: Собственное производство | D154: Кулинария мясо птицы рыбы | E154: 274278.22 | F154: 560166.14 | G154: 285887.92 | H154: 1.042328188
A155: Альфа | B155: 2011-09-25 | C155: Кулинария | D155: Кулинария мясо птицы рыбы | E155: 76 | F155: 235.98 | G155: 159.98 | H155: 2.105
A156: Альфа | B156: 2011-07-14 | C156: Товары для животных | D156: Сопутствующие товары | E156: 3181.12 | F156: 3949.21 | G156: 768.09 | H156: 0.2414526959
A157: Альфа | B157: 2011-04-15 | C157: Косметика и парфюмерия | D157: Сопутствующие товары | E157: 320100.44 | F157: 349718.4 | G157: 29617.96 | H157: 0.09252708306
A158: Альфа | B158: 2011-03-30 | C158: Средства личной гигиены | D158: Сопутствующие товары | E158: 691964.79 | F158: 745299.03 | G158: 53334.24 | H158: 0.07707652293
A159: Альфа | B159: 2011-08-24 | C159: Бытовая химия | D159: Сопутствующие товары | E159: 650148.08 | F159: 691065.01 | G159: 40916.93 | H159: 0.06293478556
A160: Альфа | B160: 2011-10-26 | C160: Хлеб,хлебопродукты | D160: Кондитерка | E160: 15420 | F160: 18148.28 | G160: 2728.28 | H160: 0.1769312581
A161: Альфа | B161: 2011-08-10 | C161: Выпечка | D161: Кондитерка | E161: 322703.37 | F161: 401832.68 | G161: 79129.31 | H161: 0.2452075725
A162: Альфа | B162: 2011-01-06 | C162: Кондитерские изделия | D162: Кондитерка | E162: 120249.21 | F162: 133538.71 | G162: 13289.5 | H162: 0.1105163186
A163: Альфа | B163: 2011-05-21 | C163: Дието-, диабетические продукты | D163: Кондитерка | E163: 3186 | F163: 3512.27 | G163: 326.27 | H163: 0.1024074074
A164: Альфа | B164: 2011-09-04 | C164: Кофе, кофейные напитки, чай | D164: Бакалея | E164: 272594.29 | F164: 298384.02 | G164: 25789.73 | H164: 0.09460847474
A165: Альфа | B165: 2011-01-18 | C165: Бакалея | D165: Бакалея | E165: 859080.94 | F165: 921341.07 | G165: 62260.13 | H165: 0.07247294999
A166: Альфа | B166: 2011-11-18 | C166: Консервы | D166: Бакалея | E166: 168928.99 | F166: 184276.36 | G166: 15347.37 | H166: 0.09085101379
A167: Альфа | B167: 2011-06-24 | C167: Растительные масла,специи,соусы | D167: Бакалея | E167: 415616.13 | F167: 440941.96 | G167: 25325.83 | H167: 0.06093562827
A168: Альфа | B168: 2011-08-01 | C168: Алкогольные напитки, пиво | D168: Напитки | E168: 571208.71 | F168: 614066.48 | G168: 42857.77 | H168: 0.07502996584
A169: Альфа | B169: 2011-01-04 | C169: Безалкогольные напитки | D169: Напитки | E169: 232243.01 | F169: 245838.75 | G169: 13595.74 | H169: 0.0585410084
A170: Альфа | B170: 2011-03-16 | C170: Соки | D170: Напитки | E170: 253457 | F170: 270578.56 | G170: 17121.56 | H170: 0.06755212916
A171: Альфа | B171: 2011-02-19 | C171: Табачные изделия и средства от похмелья | D171: Напитки | E171: 20477.2 | F171: 20980.64 | G171: 503.44 | H171: 0.02458539253
A172: Альфа | B172: 2011-12-23 | C172: Рыба и морепродукты | D172: ОУХ | E172: 17892 | F172: 20139.73 | G172: 2247.73 | H172: 0.1256276548
A173: Альфа | B173: 2011-12-24 | C173: Мясная гастрономия | D173: ОУХ | E173: 291470.21 | F173: 331170.77 | G173: 39700.56 | H173: 0.1362079507
A174: Альфа | B174: 2011-01-31 | C174: Замороженные продукты | D174: ОУХ | E174: 140762.75 | F174: 157601.31 | G174: 16838.56 | H174: 0.1196236931
A175: Альфа | B175: 2011-05-19 | C175: Молочные продукты, яйца, майонез | D175: ОУХ | E175: 950500.19 | F175: 1030339.73 | G175: 79839.54 | H175: 0.0839973951
A176: Альфа | B176: 2011-11-06 | C176: Сыры | D176: ОУХ | E176: 137408.08 | F176: 154529.58 | G176: 17121.5 | H176: 0.1246032984
A177: Альфа | B177: 2011-10-21 | C177: Овощи и фрукты | D177: Овощи и фрукты | E177: 910731.55 | F177: 1100297.22 | G177: 189565.67 | H177: 0.2081465938
A178: Альфа | B178: 2011-07-18 | C178: Свежее мясо | D178: Кулинария мясо птицы рыбы | E178: 9677.2 | F178: 21117.14 | G178: 11439.94 | H178: 1.182153929
A179: Альфа | B179: 2011-06-11 | C179: Птица свежая | D179: Кулинария мясо птицы рыбы | E179: 16997.08 | F179: 18909.29 | G179: 1912.21 | H179: 0.1125022651
A180: Альфа | B180: 2011-07-25 | C180: Собственное производство | D180: Кулинария мясо птицы рыбы | E180: 225704.91 | F180: 447551.5 | G180: 221846.59 | H180: 0.9829054671
A181: Альфа | B181: 2011-03-14 | C181: Кулинария | D181: Кулинария мясо птицы рыбы | E181: 247 | F181: 766.81 | G181: 519.81 | H181: 2.104493927
A182: Альфа | B182: 2011-12-31 | C182: Товары для животных | D182: Сопутствующие товары | E182: 4100.92 | F182: 5253.1 | G182: 1152.18 | H182: 0.2809564683
A183: Альфа | B183: 2011-05-29 | C183: Косметика и парфюмерия | D183: Сопутствующие товары | E183: 283245.84 | F183: 307792.11 | G183: 24546.27 | H183: 0.08666065493
A184: Альфа | B184: 2011-12-09 | C184: Средства личной гигиены | D184: Сопутствующие товары | E184: 634052.32 | F184: 680485.49 | G184: 46433.17 | H184: 0.07323239508
A185: Альфа | B185: 2011-07-10 | C185: Бытовая химия | D185: Сопутствующие товары | E185: 479999.58 | F185: 511582.05 | G185: 31582.47 | H185: 0.06579687007
A186: Альфа | B186: 2011-12-11 | C186: Хлеб,хлебопродукты | D186: Кондитерка | E186: 10522 | F186: 12496.95 | G186: 1974.95 | H186: 0.1876972059
A187: Альфа | B187: 2011-02-04 | C187: Выпечка | D187: Кондитерка | E187: 392228.47 | F187: 508092.51 | G187: 115864.04 | H187: 0.2953993625
A188: Альфа | B188: 2011-07-29 | C188: Кондитерские изделия | D188: Кондитерка | E188: 111761.42 | F188: 122614.72 | G188: 10853.3 | H188: 0.09711132876
A189: Альфа | B189: 2011-10-11 | C189: Дието-, диабетические продукты | D189: Кондитерка | E189: 1612 | F189: 1798.33 | G189: 186.33 | H189: 0.11558933
A190: Альфа | B190: 2011-12-01 | C190: Кофе, кофейные напитки, чай | D190: Бакалея | E190: 189069.35 | F190: 210023 | G190: 20953.65 | H190: 0.1108252078
A191: Альфа | B191: 2011-03-15 | C191: Бакалея | D191: Бакалея | E191: 876524.68 | F191: 945557.54 | G191: 69032.86 | H191: 0.07875746294
A192: Альфа | B192: 2011-06-09 | C192: Консервы | D192: Бакалея | E192: 149540.37 | F192: 164236.53 | G192: 14696.16 | H192: 0.0982755359
A193: Альфа | B193: 2011-11-24 | C193: Растительные масла,специи,соусы | D193: Бакалея | E193: 329764.1 | F193: 354092.76 | G193: 24328.66 | H193: 0.07377595075
A194: Альфа | B194: 2011-09-12 | C194: Алкогольные напитки, пиво | D194: Напитки | E194: 887055.34 | F194: 942093.14 | G194: =F194-E194 -> 55037.8 | H194: 0.06204550891
A195: Альфа | B195: 2011-09-13 | C195: Безалкогольные напитки | D195: Напитки | E195: 194078.29 | F195: 205201.58 | G195: 11123.29 | H195: =(F195-E195)/E195 -> 0.05731341718
A196: Альфа | B196: 2011-09-03 | C196: Соки | D196: Напитки | E196: 206769 | F196: 219848.54 | G196: 13079.54 | H196: 0.06325677447
A197: Альфа | B197: 2011-03-29 | C197: Табачные изделия и средства от похмелья | D197: Напитки | E197: 16978.4 | F197: 17496.84 | G197: 518.44 | H197: 0.03053526834
A198: Альфа | B198: 2011-10-05 | C198: Рыба и морепродукты | D198: ОУХ | E198: 18224 | F198: 20385.61 | G198: 2161.61 | H198: 0.118613367
A199: Альфа | B199: 2011-06-22 | C199: Мясная гастрономия | D199: ОУХ | E199: 236336.13 | F199: 267116.88 | G199: 30780.75 | H199: 0.1302414066
A200: Альфа | B200: 2011-09-13 | C200: Замороженные продукты | D200: ОУХ | E200: 127016.73 | F200: 141542.98 | G200: 14526.25 | H200: 0.1143648557
... 4577 more rows
